fUSD/lending_fUSD_20240222
["ID","MTS","AMOUNT","RATE_DAILY","PERIOD"]
[314868241,1708601453009,-974.34,0.0003315,4]
[314868242,1708601453018,-500.0,0.0003315,4]
[314868243,1708601453027,-500.0,0.0003315,4]
[314868244,1708601453037,-500.0,0.0003315,4]
[314868245,1708601453046,-544.09703776,0.0003315,4]
[314868246,1708601453055,-500.0,0.0003315,4]
[314868247,1708601453064,-544.61,0.0003315,4]
[314868248,1708601453074,-968.5,0.0003315,4]
[314868249,1708601453083,-269.60041634,0.0003315,4]
[314868250,1708601453094,-500.0,0.0003315,4]
[314868251,1708601453103,-500.0,0.0003315,4]
[314868252,1708601453112,-500.0,0.0003315,4]
[314868253,1708601453121,-500.0,0.0003315,4]
[314868254,1708601453130,-500.0,0.0003315,4]
[314868255,1708601453139,-500.0,0.0003315,4]
[314868256,1708601453148,-500.0,0.0003315,4]
[314868257,1708601453157,-500.0,0.0003315,4]
[314868258,1708601453165,-500.0,0.0003315,4]
[314868259,1708601453174,-500.0,0.0003315,4]
[314868260,1708601453183,-500.0,0.0003315,4]
[314868261,1708601453193,-500.0,0.0003315,4]
[314868262,1708601453202,-634.32,0.0003315,4]
[314868263,1708601453211,-500.0,0.0003315,4]
[314868264,1708601453220,-500.0,0.0003315,4]
[314868265,1708601453229,-500.0,0.0003315,4]
[314868266,1708601453238,-500.0,0.0003315,4]
[314868267,1708601453247,-518.26,0.0003315,4]
[314868268,1708601453256,-1122.27,0.0003315,4]
[314868269,1708601453266,-500.0,0.0003315,4]
[314868270,1708601453275,-534.52756047,0.0003315,4]
[314868271,1708601453283,-1668.09,0.0003315,4]
[314868272,1708601453292,-500.0,0.0003315,4]
[314868273,1708601453309,-545.74471336,0.0003315,4]
[314868274,1708601453330,-500.0,0.0003315,4]
[314868275,1708601453340,-500.0,0.0003315,4]
[314868276,1708601453349,-862.76,0.0003315,4]
[314868277,1708601453358,-500.0,0.0003315,4]
[314868278,1708601453367,-500.0,0.0003315,4]
[314868279,1708601453376,-514.61,0.0003315,4]
[314868280,1708601453385,-1000.0,0.0003315,3]
[314868281,1708601453394,-500.0,0.0003315,4]
[314868282,1708601453403,-500.0,0.0003315,4]
[314868283,1708601453412,-500.0,0.0003315,4]
[314868284,1708601453422,-500.0,0.0003315,4]
[314868285,1708601453431,-732.79,0.0003315,4]
[314868286,1708601453440,-500.0,0.0003315,4]
[314868287,1708601453449,-500.0,0.0003315,4]
[314868288,1708601453459,-1059.6,0.0003315,4]
[314868289,1708601453468,-500.0,0.0003315,4]
[314868290,1708601453478,-500.0,0.0003315,4]
[314868291,1708601453486,-625.66,0.0003315,4]
[314868292,1708601453495,-54.21063658,0.0003315,4]
[314868293,1708601453594,-445.78936342,0.0003315,4]
[314868294,1708601453604,-521.44364514,0.0003315,4]
[314868295,1708601454730,-500.0,0.00032876,2]
[314868296,1708601454739,-243.475,0.00032876,2]
[314868297,1708601454755,-256.525,0.00032876,2]
[314868298,1708601454765,-500.0,0.00032876,2]
[314868299,1708601454774,-32.0099196,0.0003315,4]
[314868300,1708601454784,-500.0,0.0003315,4]
[314868301,1708601454793,-1279.47,0.0003315,4]
[314868302,1708601454802,-500.0,0.0003315,4]
[314868303,1708601454811,-500.0,0.0003315,4]
[314868304,1708601454820,-500.0,0.0003315,4]
[314868305,1708601454829,-500.0,0.0003315,4]
[314868306,1708601454839,-500.0,0.0003315,4]
[314868307,1708601454848,-500.0,0.0003315,4]
[314868308,1708601454857,-367.07678604,0.0003315,4]
[314868309,1708601454875,-132.92321396,0.0003315,4]
[314868310,1708601454884,-500.0,0.0003315,4]
[314868311,1708601454894,-500.0,0.0003315,4]
[314868312,1708601454903,-500.0,0.0003315,4]
[314868313,1708601454912,-686.61,0.0003315,4]
[314868314,1708601454921,-500.0,0.0003315,4]
[314868315,1708601454930,-912.13,0.0003315,4]
[314868316,1708601454939,-500.0,0.0003315,4]
[314868317,1708601454949,-500.0,0.0003315,4]
[314868318,1708601454958,-571.79,0.0003315,4]
[314868319,1708601454967,-500.0,0.0003315,4]
[314868320,1708601454976,-500.0,0.0003315,4]
[314868321,1708601454985,-500.0,0.0003315,4]
[314868322,1708601454994,-500.0,0.0003315,4]
[314868323,1708601455003,-723.79,0.0003315,4]
[314868324,1708601455012,-914.74,0.0003315,4]
[314868325,1708601455022,-500.0,0.0003315,4]
[314868326,1708601455031,-500.0,0.0003315,4]
[314868327,1708601455041,-679.58,0.0003315,4]
[314868328,1708601455050,-500.0,0.0003315,4]
[314868329,1708601455060,-500.0,0.0003315,4]
[314868330,1708601455069,-930.61,0.0003315,4]
[314868331,1708601455078,-500.0,0.0003315,4]
[314868332,1708601455088,-500.0,0.0003315,4]
[314868333,1708601455097,-1119.25,0.0003315,4]
[314868334,1708601455105,-500.0,0.0003315,4]
[314868335,1708601455115,-765.06,0.0003315,4]
[314868336,1708601455124,-534.99,0.0003315,4]
[314868337,1708601455133,-500.0,0.0003315,4]
[314868338,1708601455143,-643.15,0.0003315,4]
[314868339,1708601455152,-500.0,0.0003315,4]
[314868340,1708601455162,-516.67220141,0.0003315,4]
[314868341,1708601455171,-500.0,0.0003315,4]
[314868342,1708601455180,-500.0,0.0003315,4]
[314868343,1708601455189,-556.18,0.0003315,4]
[314868344,1708601455198,-547.89,0.0003315,4]
[314868345,1708601455208,-500.0,0.0003315,4]
[314868346,1708601455334,-512.72,0.0003315,4]
[314868347,1708601455346,-925.47,0.0003315,4]
[314868348,1708601455356,-500.0,0.0003315,4]
[314868349,1708601455365,-500.0,0.0003315,4]
[314868350,1708601455374,-829.9,0.0003315,4]
[314868351,1708601455383,-500.0,0.0003315,4]
[314868352,1708601455393,-500.0,0.0003315,4]
[314868353,1708601455402,-500.0,0.0003315,4]
[314868354,1708601455411,-500.0,0.0003315,4]
[314868355,1708601455421,-635.44,0.0003315,4]
[314868356,1708601455430,-658.96,0.0003315,4]
[314868357,1708601455440,-500.0,0.0003315,4]
[314868358,1708601455449,-571.08236709,0.0003315,4]
[314868359,1708601455459,-687.57,0.0003315,4]
[314868360,1708601455469,-500.0,0.0003315,4]
[314868361,1708601455478,-500.0,0.0003315,4]
[314868362,1708601455487,-239.71,0.0003315,4]
[314868363,1708601455497,-694.11,0.0003315,4]
[314868364,1708601455506,-500.0,0.0003315,4]
[314868365,1708601455516,-716.07,0.0003315,4]
[314868366,1708601455526,-500.0,0.0003315,4]
[314868367,1708601455535,-500.0,0.0003315,4]
[314868368,1708601455549,-500.0,0.0003315,4]
[314868369,1708601455558,-688.57,0.0003315,4]
[314868370,1708601455567,-500.0,0.0003315,4]
[314868371,1708601455576,-681.04,0.0003315,4]
[314868372,1708601455586,-337.85751465,0.0003315,4]
[314868373,1708601455596,-978.63,0.0003315,4]
[314868374,1708601455604,-521.88283515,0.0003315,4]
[314868375,1708601455614,-500.0,0.0003315,4]
[314868376,1708601455624,-500.0,0.0003315,2]
[314868377,1708601455636,-1000.0,0.0003315,7]
[314868378,1708601455645,-500.0,0.0003315,4]
[314868379,1708601455654,-500.0,0.0003315,4]
[314868380,1708601455663,-500.0,0.0003315,4]
[314868381,1708601455674,-500.0,0.0003315,4]
[314868382,1708601455683,-918.95,0.0003315,4]
[314868383,1708601455693,-614.2,0.0003315,4]
[314868384,1708601455703,-905.31,0.0003315,4]
[314868385,1708601455713,-591.88587673,0.0003315,4]
[314868386,1708601455723,-500.0,0.0003315,4]
[314868387,1708601455732,-500.0,0.0003315,4]
[314868388,1708601455742,-500.0,0.0003315,4]
[314868389,1708601455752,-763.21,0.0003315,4]
[314868390,1708601455762,-1000.04,0.0003315,4]
[314868391,1708601455771,-500.0,0.0003315,4]
[314868392,1708601455780,-500.0,0.0003315,4]
[314868393,1708601455790,-500.0,0.0003315,4]
[314868394,1708601455799,-500.0,0.0003315,4]
[314868395,1708601455808,-500.0,0.0003315,4]
[314868396,1708601455817,-500.0,0.0003315,4]
[314868397,1708601455826,-500.0,0.0003315,4]
[314868398,1708601455837,-879.77,0.0003315,4]
[314868399,1708601455846,-500.0,0.0003315,4]
[314868400,1708601455856,-500.0,0.0003315,4]
[314868401,1708601455865,-703.72,0.0003315,4]
[314868402,1708601455875,-500.0,0.0003315,4]
[314868403,1708601455885,-521.26,0.0003315,4]
[314868404,1708601455894,-548.5859281,0.0003315,4]
[314868405,1708601455904,-646.64,0.0003315,4]
[314868406,1708601455913,-500.0,0.0003315,4]
[314868407,1708601455922,-928.62,0.0003315,4]
[314868408,1708601455932,-500.0,0.0003315,2]
[314868409,1708601455941,-856.99,0.0003315,4]
[314868410,1708601455951,-500.0,0.0003315,4]
[314868411,1708601455960,-500.0,0.0003315,4]
[314868412,1708601455970,-500.0,0.0003315,4]
[314868413,1708601455980,-776.39,0.0003315,4]
[314868414,1708601455989,-1134.57,0.0003315,4]
[314868415,1708601455998,-500.0,0.0003315,4]
[314868416,1708601456007,-500.0,0.0003315,4]
[314868417,1708601456016,-686.04,0.0003315,4]
[314868418,1708601456026,-501.74,0.0003315,4]
[314868419,1708601456035,-896.19,0.0003315,4]
[314868420,1708601456044,-500.0,0.0003315,4]
[314868421,1708601456053,-614.69,0.0003315,4]
[314868422,1708601456062,-524.37577491,0.0003315,4]
[314868423,1708601456071,-500.0,0.0003315,4]
[314868424,1708601456081,-500.0,0.0003315,4]
[314868425,1708601456092,-518.69,0.0003315,2]
[314868426,1708601456101,-685.21,0.0003315,4]
[314868427,1708601456110,-1345.47,0.0003315,4]
[314868428,1708601456119,-500.0,0.0003315,4]
[314868429,1708601456129,-500.0,0.0003315,4]
[314868430,1708601456139,-500.0,0.0003315,4]
[314868431,1708601456148,-500.0,0.0003315,4]
[314868432,1708601456157,-500.0,0.0003315,4]
[314868433,1708601456167,-708.46,0.0003315,4]
[314868434,1708601456177,-500.0,0.0003315,4]
[314868435,1708601456186,-500.0,0.0003315,4]
[314868436,1708601456195,-500.0,0.0003315,4]
[314868437,1708601456205,-500.0,0.0003315,4]
[314868438,1708601456215,-500.0,0.0003315,4]
[314868439,1708601456225,-500.0,0.0003315,4]
[314868440,1708601456234,-640.59764124,0.0003315,4]
[314868441,1708601456243,-527.82190797,0.0003315,4]
[314868442,1708601456252,-615.5,0.0003315,4]
[314868443,1708601456262,-500.0,0.0003315,4]
[314868444,1708601456271,-174.67162582,0.0003315,4]
[314868445,1708601456281,-618.86,0.0003315,4]
[314868446,1708601456290,-500.0,0.0003315,4]
[314868447,1708601456300,-500.0,0.0003315,4]
[314868448,1708601456309,-870.75,0.0003315,4]
[314868449,1708601456319,-500.0,0.0003315,4]
[314868450,1708601456328,-1183.42,0.0003315,4]
[314868451,1708601456338,-500.0,0.0003315,4]
[314868452,1708601456347,-500.0,0.0003315,4]
[314868453,1708601456357,-500.0,0.0003315,4]
[314868454,1708601456366,-500.0,0.0003315,4]
[314868455,1708601456377,-500.0,0.0003315,2]
[314868456,1708601456386,-500.0,0.0003315,4]
[314868457,1708601456395,-500.0,0.0003315,4]
[314868458,1708601456405,-528.53017372,0.0003315,4]
[314868459,1708601456414,-1199.47,0.0003315,4]
[314868460,1708601456424,-616.02,0.0003315,4]
[314868461,1708601456434,-594.06704932,0.0003315,4]
[314868462,1708601456443,-500.0,0.0003315,4]
[314868463,1708601456452,-532.54,0.0003315,4]
[314868464,1708601456462,-560.66,0.0003315,4]
[314868465,1708601456471,-500.0,0.0003315,4]
[314868466,1708601456480,-500.0,0.0003315,4]
[314868467,1708601456489,-500.0,0.0003315,4]
[314868468,1708601456498,-500.0,0.0003315,4]
[314868469,1708601456508,-500.0,0.0003315,4]
[314868470,1708601456518,-757.8,0.0003315,4]
[314868471,1708601456527,-500.0,0.0003315,4]
[314868472,1708601456537,-500.0,0.0003315,4]
[314868473,1708601456552,-500.0,0.0003315,4]
[314868474,1708601456561,-500.0,0.0003315,4]
[314868475,1708601456571,-500.0,0.0003315,4]
[314868476,1708601456581,-1169.23,0.0003315,4]
[314868477,1708601456591,-506.1,0.0003315,4]
[314868478,1708601456600,-1079.59,0.0003315,4]
[314868479,1708601456610,-387.48,0.0003315,4]
[314868480,1708601456619,-500.0,0.0003315,4]
[314868481,1708601456629,-548.6,0.0003315,4]
[314868482,1708601456641,-500.0,0.0003315,4]
[314868483,1708601456650,-699.53,0.0003315,4]
[314868484,1708601456660,-500.0,0.0003315,4]
[314868485,1708601456669,-500.0,0.0003315,4]
[314868486,1708601456678,-510.95,0.0003315,4]
[314868487,1708601456688,-539.27,0.0003315,4]
[314868488,1708601456697,-546.38,0.0003315,4]
[314868489,1708601456706,-500.0,0.0003315,4]
[314868490,1708601456715,-500.0,0.0003315,4]
[314868491,1708601456725,-974.31,0.0003315,4]
[314868492,1708601456735,-934.97,0.0003315,4]
[314868493,1708601456744,-1055.04,0.0003315,4]
[314868494,1708601456754,-500.0,0.0003315,4]
[314868495,1708601456764,-500.0,0.0003315,4]
[314868496,1708601456773,-500.0,0.0003315,4]
[314868497,1708601456782,-500.0,0.0003315,4]
[314868498,1708601456791,-757.37,0.0003315,4]
[314868499,1708601456801,-820.71,0.0003315,4]
[314868500,1708601456810,-500.0,0.0003315,4]
[314868501,1708601456820,-500.0,0.0003315,4]
[314868502,1708601456829,-500.0,0.0003315,4]
[314868503,1708601456839,-500.0,0.0003315,4]
[314868504,1708601456849,-941.22,0.0003315,4]
[314868505,1708601456858,-500.0,0.0003315,4]
[314868506,1708601456868,-500.0,0.0003315,4]
[314868507,1708601456877,-624.96,0.0003315,4]
[314868508,1708601456886,-759.78,0.0003315,4]
[314868509,1708601456895,-505.83,0.0003315,4]
[314868510,1708601456905,-652.1,0.0003315,4]
[314868511,1708601456914,-500.0,0.0003315,4]
[314868512,1708601456923,-500.0,0.0003315,4]
[314868513,1708601456933,-500.0,0.0003315,4]
[314868514,1708601456943,-500.0,0.0003315,4]
[314868515,1708601456952,-81.43601271,0.0003315,4]
[314868516,1708601457867,-250.1161747,0.0003315,4]
[314868517,1708601486030,203.45,0.00025889,2]
[314868519,1708601948947,2177.52,0.0002702,2]
[314868522,1708602245852,573.9,0.00026822,2]
[314868525,1708602445345,213.41,0.00022502,2]
[314868526,1708602561315,1258.69068663,0.00027,2]
[314868527,1708602561339,741.30931337,0.00027,2]
[314868534,1708602613649,1304.69137326,0.00027,2]
[314868535,1708602613677,1495.30862674,0.00027,2]
[314868543,1708602632332,-500.0,0.00027682,2]
[314868544,1708602632388,-280.643079,0.00027682,2]
[314868545,1708602632397,-92.0826377,0.00027755,2]
[314868546,1708602632447,-121.46949698,0.00027755,2]
[314868547,1708602632456,-730.35,0.00027783,2]
[314868548,1708602632465,-2336.04803761,0.00027822,2]
[314868549,1708602632475,-1212.20411955,0.00027823,2]
[314868550,1708602632484,-1268.34,0.00027844,2]
[314868551,1708602632493,-500.0,0.00027844,2]
[314868552,1708602632503,-169.269073,0.00027855,2]
[314868553,1708602632512,-41421.26499713,0.00027857,2]
[314868558,1708602638198,-399.39084732,0.00027857,2]
[314868559,1708602638332,-679.21665167,0.00027857,2]
[314868560,1708602638345,-298.60432234,0.00027857,2]
[314868561,1708602638385,-311.21120683,0.00027857,2]
[314868562,1708602638399,-5920.74072197,0.00027857,2]
[314868563,1708602638408,-1248.42,0.00027857,2]
[314868564,1708602638418,-169.26907299,0.00027931,2]
[314868565,1708602638428,-174.09,0.00027955,2]
[314868566,1708602638437,-986.15471591,0.00027965,2]
[314868567,1708602638449,-459.84528409,0.00027965,2]
[314868568,1708602638459,-313.38,0.00027997,2]
[314868569,1708602638469,-169.26907299,0.00028007,2]
[314868570,1708602638478,-250.0,0.00028031,2]
[314868571,1708602638488,-213.5521346,0.00028034,2]
[314868572,1708602638497,-279.44,0.000281,2]
[314868573,1708602638507,-150.0,0.00028107,2]
[314868574,1708602638516,-385.81,0.00028107,2]
[314868575,1708602638526,-431.17,0.00028107,2]
[314868576,1708602638536,-2694.18066396,0.00028107,2]
[314868577,1708602640314,-80.04933604,0.00028107,2]
[314868578,1708602640324,-150.0,0.00028125,2]
[314868579,1708602640333,-499.99,0.00028125,2]
[314868580,1708602640342,-183.85,0.00028125,2]
[314868581,1708602640352,-654.08,0.00028125,2]
[314868582,1708602640361,-791.71,0.00028125,2]
[314868583,1708602640372,-150.0,0.00028144,2]
[314868584,1708602640382,-150.0,0.00028144,2]
[314868585,1708602640391,-683.64,0.00028145,2]
[314868586,1708602640400,-1125.02203825,0.00028145,2]
[314868591,1708602640922,-1581.587769,0.00028145,2]
[314868592,1708602641090,-5088.70019275,0.00028145,2]
[314868593,1708602641100,-152.96,0.00028165,2]
[314868594,1708602641109,-174.09,0.00028246,2]
[314868595,1708602641118,-279.44,0.00028248,2]
[314868596,1708602641130,-500.0,0.00028251,2]
[314868597,1708602641140,-200.0,0.00028252,2]
[314868598,1708602641153,-9999.99,0.00028252,2]
[314868599,1708602641163,-760.8,0.00028252,2]
[314868600,1708602641173,-152.96,0.00028263,2]
[314868601,1708602641182,-1000.0,0.00028308,2]
[314868602,1708602641192,-200.0,0.00028309,2]
[314868603,1708602641201,-500.0,0.00028309,2]
[314868604,1708602641211,-9221.87,0.00028309,2]
[314868605,1708602641221,-250.0,0.00028309,2]
[314868606,1708602641231,-213.5521346,0.00028312,2]
[314868607,1708602641241,-2117.63,0.00028353,2]
[314868608,1708602641250,-152.96,0.0002836,2]
[314868609,1708602641259,-279.44,0.00028396,2]
[314868610,1708602641269,-152.96,0.00028458,2]
[314868611,1708602641278,-541.15759714,0.00028475,2]
[314868612,1708602641287,-541.15759714,0.00028475,2]
[314868613,1708602641297,-541.15759714,0.00028475,2]
[314868614,1708602641306,-500.0,0.00028475,2]
[314868615,1708602641316,-174.09,0.00028537,2]
[314868616,1708602641325,-279.44,0.00028544,2]
[314868617,1708602641335,-300.0,0.00028548,2]
[314868618,1708602641344,-2139.2738,0.00028549,2]
[314868619,1708602641354,-152.96,0.00028556,2]
[314868620,1708602641363,-213.5521346,0.00028591,2]
[314868621,1708602641375,-2535.92,0.00028601,2]
[314868622,1708602641385,-152.96,0.00028654,2]
[314868623,1708602641394,-279.44,0.00028692,2]
[314868624,1708602641403,-152.96,0.00028752,2]
[314868625,1708602641413,-328.44,0.00028771,2]
[314868626,1708602641425,-360.0,0.00028794,2]
[314868627,1708602641435,-174.09,0.00028827,2]
[314868628,1708602641445,-279.44,0.0002884,2]
[314868629,1708602641454,-23900.0,0.00028843,2]
[314868630,1708602641463,-152.96,0.0002885,2]
[314868631,1708602641473,-213.5521346,0.0002887,2]
[314868632,1708602641482,-200.0,0.0002893,2]
[314868633,1708602641491,-152.96,0.00028947,2]
[314868634,1708602641501,-279.44,0.00028988,2]
[314868635,1708602641510,-152.96,0.00029045,2]
[314868636,1708602641519,-573.9,0.00029086,2]
[314868637,1708602641529,-174.09,0.00029118,2]
[314868638,1708602641538,-279.44,0.00029136,2]
[314868639,1708602641548,-152.96,0.00029143,2]
[314868640,1708602641557,-2000.0,0.00029218,2]
[314868641,1708602641567,-152.96,0.00029241,2]
[314868642,1708602641576,-279.44,0.00029284,2]
[314868643,1708602641585,-152.96,0.00029339,2]
[314868644,1708602641594,-1219.55,0.00029355,2]
[314868645,1708602641605,-174.09,0.00029409,2]
[314868646,1708602641614,-279.44,0.00029431,2]
[314868647,1708602641625,-152.96,0.00029437,2]
[314868648,1708602641635,-1248.42,0.00029501,2]
[314868649,1708602641644,-152.96,0.00029534,2]
[314868650,1708602641654,-279.44,0.00029579,2]
[314868651,1708602641663,-152.96,0.00029632,2]
[314868652,1708602641673,-279.44,0.00029727,2]
[314868653,1708602641683,-766.4041333,0.00029798,2]
[314868654,1708602641693,-676.9561,0.00029799,2]
[314868655,1708602641703,-279.44,0.00029875,2]
[314868656,1708602641713,-110054.01339146,0.0003,2]
[314868657,1708602641729,-45400.05139348,0.0003,2]
[314868658,1708602641759,-265.22886124,0.0003,2]
[314868668,1708602643523,-1133.61,0.00028019,2]
[314868669,1708602643533,-213.5521346,0.00029148,2]
[314868670,1708602643544,-90.4303231,0.0003,2]
[314868672,1708602646736,-2731.62476982,0.0003,2]
[314868673,1708602646780,-2414.12302789,0.0003,2]
[314868674,1708602646840,-1563.16156564,0.0003,2]
[314868675,1708602646861,-1721.74746167,0.0003,2]
[314868691,1708603306603,151.27923715,0.00027,2]
[314868692,1708603326947,399.41282274,0.00026171,2]
[314868693,1708603327329,243.41717726,0.00026171,2]
[314868694,1708603398582,-430.00747052,0.00027394,2]
[314868695,1708603398613,-1212.20411955,0.00027395,2]
[314868696,1708603398643,-2336.04803761,0.00027396,2]
[314868697,1708603398673,-1612.47242256,0.00027398,2]
[314868698,1708603398703,-150.0,0.00027399,2]
[314868699,1708603398733,-13612.7044,0.000274,2]
[314868700,1708603430946,-646.56354976,0.00027477,2]
[314868701,1708603449083,3757.5927,0.00027295,14]
[314868702,1708603470738,-198.24429787,0.00027476,2]
[314868703,1708603470768,-1747.43645024,0.00027477,2]
[314868704,1708603470797,-3000.0,0.000275,2]
[314868705,1708603470826,-177.69,0.00027774,2]
[314868706,1708603470854,-4506.05830487,0.000278,2]
[314868707,1708603470883,-3987.0205,0.00027865,2]
[314868708,1708603470911,-1000.0,0.00027999,2]
[314868709,1708603470939,-2983.67,0.00027999,2]
[314868710,1708603470968,-2399.88044702,0.00028,2]
[314868711,1708603476948,-1212.20411955,0.00027475,2]
[314868712,1708603476981,-15814.60503225,0.00028,2]
[314868713,1708603477013,-150.99,0.00028,2]
[314868714,1708603565112,5500.0,0.00025,10]
[314868715,1708603574475,245.2571,0.00027296,2]
[314868717,1708603606792,352.0,0.00027999,2]
[314868718,1708603607755,1212.20411955,0.00027999,2]
[314868719,1708603611054,220.48286974,0.00027928,2]
[314868720,1708603620113,792.25675891,0.00027999,2]
[314868749,1708603831521,-2336.04803761,0.00027898,2]
[314868750,1708603831530,-1212.20411955,0.00027898,2]
[314868751,1708603831540,-1741.59150867,0.00027899,2]
[314868752,1708603831552,-347.778,0.00027899,2]
[314868753,1708603831563,-587.33269872,0.00027899,2]
[314868754,1708603831601,-313.25879261,0.00027899,2]
[314868755,1708603831611,-300.0,0.0002793,2]
[314868756,1708603831620,-250.0,0.0002795,2]
[314868757,1708603831630,-151.11,0.00027954,2]
[314868758,1708603831639,-500.0,0.00027963,2]
[314868759,1708603831649,-1468.17724207,0.00027967,2]
[314868760,1708603831662,-623.39297869,0.00027967,2]
[314868761,1708603831686,-431.18512968,0.00027967,2]
[314868762,1708603831699,-21377.24464956,0.00027967,2]
[314868763,1708603831710,-440.03,0.00027989,2]
[314868764,1708603831720,-2000.0,0.00027992,2]
[314868765,1708603831733,-944.67,0.00027993,2]
[314868766,1708603831742,-150.0,0.00027999,2]
[314868767,1708603831752,-12911.38766387,0.00028,2]
[314868768,1708603831765,-716.90233613,0.00028,2]
[314868769,1708603831775,-200.0,0.0002803,2]
[314868770,1708603831784,-67.12220921,0.0002803,2]
[314868771,1708603831800,-847.35779079,0.0002803,2]
[314868772,1708603831810,-500.0,0.00028034,2]
[314868773,1708603831820,-150.99,0.00028034,2]
[314868774,1708603831829,-596.52,0.00028063,2]
[314868775,1708603831839,-200.0,0.00028089,2]
[314868776,1708603831849,-150.0,0.00028101,2]
[314868777,1708603831858,-298.91,0.00028103,2]
[314868778,1708603831868,-999.99,0.00028103,2]
[314868781,1708603831878,-499.99,0.00028103,2]
[314868782,1708603831886,-1592.79,0.00028103,2]
[314868783,1708603831895,-1412.6,0.00028103,2]
[314868784,1708603831905,-299.99,0.0002812,12]
[314868785,1708603831914,-1088.28,0.00028156,2]
[314868786,1708603831923,-250.0,0.00028157,2]
[314868823,1708603832364,-165.17,0.0002818,2]
[314868825,1708603832373,-220.4828696,0.00028198,2]
[314868827,1708603832382,-177.69,0.00028322,2]
[314868829,1708603832393,-150.0,0.00028329,2]
[314868831,1708603832402,-1456.91,0.00028345,2]
[314868833,1708603832413,-916.38405462,0.00028418,2]
[314868835,1708603832422,-716.03,0.00028419,2]
[314868837,1708603832432,-642.83,0.00028435,2]
[314868839,1708603832443,-220.4828696,0.00028467,2]
[314868841,1708603832453,-499.99,0.00028522,2]
[314868843,1708603832464,-544.66,0.00028712,2]
[314868845,1708603832473,-220.4828696,0.00028737,2]
[314868847,1708603832482,-180.47,0.0002877,2]
[314868849,1708603832491,-209.0,0.00028839,2]
[314868851,1708603832500,-20899.03594073,0.00028854,2]
[314868853,1708603832510,-7929.063,0.00028854,2]
[314868855,1708603832519,-544.66,0.00028863,2]
[314868857,1708603832528,-177.69,0.0002887,2]
[314868859,1708603832537,-1253.74163377,0.00028986,10]
[314868868,1708603832609,-527.51616623,0.00028986,10]
[314868870,1708603832618,-1000.0,0.00028998,2]
[314868872,1708603832627,-1544.0,0.00029,2]
[314868874,1708603832637,-220.4828696,0.00029006,2]
[314868876,1708603832646,-544.66,0.00029015,2]
[314868878,1708603832655,-164.49,0.00029095,2]
[314868880,1708603832665,-544.66,0.00029166,2]
[314868882,1708603832674,-220.4828696,0.00029276,2]
[314868884,1708603832684,-544.66,0.00029317,2]
[314868886,1708603832693,-1929.7693,0.00029342,10]
[314868888,1708603832702,-177.69,0.00029418,2]
[314868890,1708603832713,-1000.0,0.00029467,2]
[314868892,1708603832722,-544.66,0.00029468,2]
[314868894,1708603832732,-235.99145083,0.000295,2]
[314868896,1708603832742,-298.91,0.00029508,2]
[314868898,1708603832751,-220.4828696,0.00029545,2]
[314868900,1708603832760,-544.66,0.00029619,2]